bitfinex-derivatives/quotes_SOLF0:USTF0_20251018
["timestamp","ask_amount","ask_price","bid_price","bid_amount"]
[1760784441594,7.2872797,185.56,185.5,2.74]
[1760784441901,4.5172797,185.55,185.48,1.83569287]
[1760784442101,4.5172797,185.54,185.48,1.83569287]
[1760784442298,7.6191,185.56,185.48,1.83569287]
[1760784442499,2.77,185.54,185.47,2.74]
[1760784442699,7.76704497,185.59,185.53,2.74]
[1760784443000,4.51787607,185.58,185.57,2.74]
[1760784443188,9.60273784,185.62,185.52,44.88]
[1760784443390,6.35523737,185.61,185.53,4.57569287]
[1760784443593,1.83569287,185.57,185.5,4.57569287]
[1760784443902,4.5195445,185.56,185.5,2.74]
[1760784444100,2.77,185.54,185.5,2.74]
[1760784444311,4.51878829,185.53,185.5,2.74]
[1760784444609,1.83569287,185.51,185.46,2.74]
[1760784445108,1.83569287,185.51,185.45,49.7316]
[1760784445309,1.83569287,185.51,185.47,2.74]
[1760784445503,1.83569287,185.51,185.46,2.74]
[1760784446114,1.83569287,185.51,185.45,64.74]
[1760784446408,1.83569287,185.49,185.45,2.74]
[1760784447600,1.83569287,185.49,185.46,2.74]
[1760784448908,1.83569287,185.47,185.46,2.74]
[1760784450102,1.83569287,185.49,185.46,2.74]
[1760784454013,1.83569287,185.47,185.46,2.74]
[1760784454219,1.83569287,185.47,185.45,2.74]
[1760784454808,1.83569287,185.47,185.44,5.79018241]
[1760784455008,1.83569287,185.48,185.45,2.74]
[1760784455514,5.64728829,185.49,185.45,2.74]
[1760784455713,4.52595805,185.48,185.45,2.74]
[1760784455910,4.52595805,185.48,185.44,0.93818241]
[1760784455911,2.87728829,185.49,185.44,0.93818241]
[1760784456115,5.64728829,185.49,185.45,2.74]
[1760784457113,2.87728829,185.53,185.45,2.74]
[1760784457410,4.52713937,185.52,185.45,2.74]
[1760784457614,4.52713937,185.51,185.45,2.74]
[1760784457918,2.87728829,185.53,185.46,2.74]
[1760784458115,4.52391361,185.52,185.46,2.74]
[1760784458318,4.52391361,185.51,185.45,4.8516]
[1760784458613,2.87728829,185.53,185.46,2.74]
[1760784458816,4.52330168,185.52,185.46,2.74]
[1760784459014,4.52330168,185.51,185.47,2.74]
[1760784459321,2.87728829,185.53,185.46,2.74]
[1760784459511,4.5241439,185.52,185.46,2.74]
[1760784459711,4.5241439,185.51,185.47,2.74]
[1760784459911,2.87728829,185.53,185.47,2.74]
[1760784460112,7.29371445,185.52,185.47,2.74]
[1760784460412,4.52371445,185.51,185.46,2.74]
[1760784460610,2.77,185.52,185.46,2.74]
[1760784460812,7.29469252,185.51,185.46,2.74]
[1760784461021,2.77,185.51,185.46,2.74]
[1760784461314,2.77,185.51,185.45,7.5916]
[1760784462007,7.6195,185.54,185.46,2.74]
[1760784462215,4.52616909,185.53,185.46,2.74]
[1760784462417,4.52616909,185.52,185.46,2.74]
[1760784462607,4.52616909,185.51,185.46,2.74]
[1760784462812,7.6195,185.54,185.46,2.74]
[1760784463117,4.52629915,185.53,185.46,2.74]
[1760784463324,4.52629915,185.52,185.46,2.74]
[1760784463617,4.52629915,185.51,185.46,2.74]
[1760784463813,4.52629915,185.5,185.46,2.74]
[1760784464019,2.77,185.53,185.46,2.74]
[1760784464317,4.5295463,185.52,185.46,2.74]
[1760784464507,4.5295463,185.51,185.46,2.74]
[1760784464707,4.5295463,185.51,185.45,49.7516]
[1760784464708,4.5295463,185.5,185.45,49.7516]
[1760784464912,2.77,185.53,185.46,2.74]
[1760784465116,4.52947981,185.52,185.46,2.74]
[1760784465312,4.52947981,185.51,185.46,2.74]
[1760784465518,4.52947981,185.5,185.46,2.74]
[1760784465713,2.77,185.53,185.46,2.74]
[1760784465913,2.77,185.51,185.44,0.93818241]
[1760784466114,4.52962747,185.5,185.44,0.93818241]
[1760784466319,4.52962747,185.49,185.44,0.93818241]
[1760784466518,2.68,185.47,185.42,2.74]
[1760784466719,4.52962747,185.46,185.39,2.81]
[1760784466921,4.52962747,185.45,185.41,2.81]
[1760784467118,2.68,185.47,185.41,2.81]
[1760784467315,2.68,185.47,185.4,0.93838479]
[1760784467316,2.87728829,185.44,185.4,0.93838479]
[1760784467617,7.20893478,185.43,185.37,2.81]
[1760784467815,7.20557743,185.42,185.38,2.81]
[1760784468122,2.68,185.42,185.38,2.81]
[1760784471024,2.68,185.42,185.37,0.93858726]
[1760784471025,2.87728829,185.44,185.37,0.93858726]
[1760784471223,4.5209899,185.43,185.37,45.83858726]
[1760784471530,2.87728829,185.44,185.38,2.81]
[1760784471725,4.52046069,185.43,185.37,3.74858726]
[1760784471931,2.68,185.45,185.38,2.81]
[1760784472525,2.68,185.45,185.38,47.71]
[1760784472825,4.52082178,185.44,185.39,2.81]
[1760784473125,2.68,185.45,185.39,2.81]
[1760784473330,7.20037319,185.44,185.39,2.81]
[1760784473629,2.68,185.45,185.39,2.81]
[1760784473824,2.68,185.43,185.39,2.81]
[1760784475127,2.68,185.43,185.4,2.81]
[1760784475332,4.8516,185.46,185.38,2.81]
[1760784475537,4.52120592,185.45,185.38,2.81]
[1760784475726,4.52120592,185.44,185.38,2.81]
[1760784476031,5.55728829,185.47,185.38,2.81]
[1760784476228,4.52160374,185.46,185.38,2.81]
[1760784476434,4.52160374,185.45,185.38,2.81]
[1760784476734,2.68,185.47,185.4,2.81]
[1760784476928,4.52227921,185.46,185.4,2.81]
[1760784477129,2.68,185.47,185.4,2.81]
[1760784477328,4.52246298,185.46,185.41,44.9]
[1760784477530,2.68,185.47,185.41,44.9]
[1760784477730,2.68,185.47,185.4,4.8528]
[1760784477930,2.68,185.47,185.42,2.81]
[1760784478134,2.68,185.47,185.41,44.9]
[1760784478533,2.68,185.47,185.4,4.8528]
[1760784478833,2.68,185.47,185.41,47.71]
[1760784479430,2.68,185.47,185.41,2.81]
[1760784479631,2.68,185.47,185.41,47.71]
[1760784480433,4.99277406,185.51,185.43,2.87728829]
[1760784480632,7.20510076,185.5,185.44,2.81]
[1760784480831,4.52510076,185.49,185.44,2.81]
[1760784481034,2.68,185.51,185.44,2.81]
[1760784481337,4.52529318,185.5,185.44,2.81]
[1760784481536,4.8494,185.54,185.44,2.81]
[1760784481736,7.20648537,185.53,185.44,2.81]
[1760784481935,4.52648537,185.52,185.44,2.81]
[1760784482137,4.52648537,185.51,185.44,7.6618]
[1760784482334,2.68,185.52,185.44,7.6618]
[1760784482531,4.52693096,185.51,185.44,7.6618]
[1760784482834,2.68,185.52,185.44,7.6618]
[1760784483030,4.52693096,185.51,185.44,47.71]
[1760784483231,4.52710993,185.5,185.44,47.71]
[1760784483535,2.68,185.51,185.44,47.71]
[1760784483733,4.52681097,185.5,185.44,47.71]
[1760784483928,2.68,185.51,185.44,47.71]
[1760784484126,4.52681248,185.5,185.44,47.71]
[1760784484326,2.68,185.51,185.44,47.71]
[1760784484528,4.52762581,185.5,185.44,47.71]
[1760784484732,2.68,185.51,185.44,2.81]
[1760784484933,4.53012943,185.5,185.45,44.9]
[1760784485137,12.67187406,185.55,185.46,2.67]
[1760784485333,4.53024594,185.54,185.46,2.67]
[1760784485532,4.53024594,185.53,185.47,44.9]
[1760784485735,7.36024594,185.52,185.48,2.67]
[1760784485941,4.53024594,185.51,185.48,2.67]
[1760784486140,2.83,185.52,185.48,2.67]
[1760784486337,4.53194665,185.51,185.48,2.67]
[1760784486538,2.83,185.52,185.48,2.67]
[1760784486741,4.53208103,185.51,185.48,2.67]
[1760784486943,2.83,185.52,185.48,2.67]
[1760784487241,4.5325101,185.51,185.48,2.67]
[1760784487440,2.83,185.52,185.48,2.67]
[1760784487640,4.53294951,185.51,185.48,2.67]
[1760784487843,2.83,185.49,185.44,2.67]
[1760784488040,4.53294951,185.48,185.4,2.67]
[1760784488243,7.36294951,185.47,185.4,2.67]
[1760784488440,4.53294951,185.46,185.4,47.57]
[1760784488743,7.36294951,185.45,185.4,47.57]
[1760784488939,2.83,185.45,185.41,2.67]
[1760784489147,2.83,185.43,185.37,3.60858726]
[1760784489343,4.53330453,185.42,185.37,3.60858726]
[1760784489547,7.36330453,185.41,185.37,3.60858726]
[1760784489748,2.83,185.41,185.37,3.60858726]
[1760784489944,2.87728829,185.44,185.37,3.60858726]
[1760784490249,4.53311853,185.43,185.37,3.60858726]
[1760784490548,2.83,185.41,185.37,3.60858726]
[1760784492451,4.53415026,185.4,185.33,96.2827862]
[1760784492651,2.83,185.42,185.34,0.93870119]
[1760784492843,4.53415026,185.41,185.35,44.9]
[1760784493040,4.53415026,185.4,185.34,0.93870119]
[1760784493345,2.83,185.39,185.35,47.57]
[1760784493549,2.83,185.39,185.35,2.67]
[1760784494344,2.83,185.39,185.35,47.57]
[1760784494546,2.87728829,185.41,185.35,2.67]
[1760784494741,7.36154118,185.4,185.34,45.83870119]
[1760784494949,7.36154118,185.39,185.34,3.60870119]
[1760784495148,2.83,185.38,185.34,3.60870119]
[1760784495344,2.83,185.4,185.34,0.93870119]
[1760784495545,2.83,185.38,185.34,0.93870119]
[1760784495850,2.83,185.4,185.34,0.93870119]
[1760784496045,2.83,185.38,185.34,0.93870119]
[1760784496649,2.63,185.4,185.34,0.93870119]
[1760784496843,2.63,185.38,185.34,0.93870119]
[1760784497050,2.63,185.38,185.34,3.55870119]
[1760784499857,2.63,185.37,185.25,2.62]
[1760784500154,5.50728829,185.35,185.27,2.62]
[1760784500353,5.50728829,185.35,185.28,44.9]
[1760784500849,5.50728829,185.35,185.27,3.55908116]
[1760784500850,7.15390539,185.34,185.27,3.55908116]
[1760784501050,4.8549,185.33,185.27,3.55908116]
[1760784501255,2.63,185.31,185.23,47.52]
[1760784501551,2.63,185.31,185.24,44.9]
[1760784501756,2.63,185.31,185.23,2.62]
[1760784502055,7.4855,185.31,185.24,13.7]
[1760784502253,7.4855,185.31,185.24,44.9]
[1760784502556,7.4855,185.31,185.23,2.62]
[1760784502755,7.4855,185.31,185.24,44.9]
[1760784503151,7.4855,185.31,185.23,2.62]
[1760784503360,7.4855,185.31,185.23,47.52]
[1760784503657,7.4855,185.31,185.23,2.62]
[1760784503853,7.4855,185.31,185.23,47.52]
[1760784504053,7.4855,185.31,185.23,2.62]
[1760784504456,7.4855,185.31,185.23,47.52]
[1760784504961,7.4855,185.31,185.23,2.62]
[1760784505160,2.63,185.31,185.23,44.9]
[1760784505459,2.63,185.31,185.25,2.62]
[1760784505857,5.50728829,185.36,185.25,2.62]
[1760784506052,4.51207979,185.35,185.27,2.62]
[1760784506257,2.63,185.4,185.29,2.62]
[1760784506561,4.51304595,185.39,185.29,2.62]
[1760784506756,4.51304595,185.38,185.29,2.62]
[1760784506957,4.51304595,185.37,185.29,2.62]
[1760784507161,4.8534,185.39,185.3,49.7754]
[1760784507358,7.14326352,185.38,185.3,44.92]
[1760784507559,4.51326352,185.37,185.3,44.92]
[1760784507860,2.63,185.38,185.3,44.92]
[1760784508067,4.51304079,185.37,185.29,2.62]
[1760784508258,4.51279695,185.36,185.29,2.62]
[1760784508458,2.63,185.38,185.29,2.62]
[1760784508659,4.51328113,185.37,185.29,2.62]
[1760784508859,4.51328113,185.36,185.29,2.62]
[1760784509062,7.4837,185.38,185.29,2.62]
[1760784509264,4.51312979,185.37,185.29,2.62]
[1760784509463,4.51312979,185.36,185.29,2.62]
[1760784509663,7.4837,185.38,185.29,2.62]
[1760784509865,4.51372784,185.37,185.29,2.62]
[1760784510165,4.51372784,185.36,185.29,2.62]
[1760784510365,7.4837,185.38,185.29,2.62]
[1760784510567,4.51426443,185.37,185.29,2.62]
[1760784510767,4.51426443,185.36,185.29,2.62]
[1760784510963,7.4837,185.38,185.29,2.62]
[1760784511164,4.51426443,185.37,185.29,2.62]
[1760784511363,4.51426443,185.36,185.29,2.62]
[1760784511564,7.4837,185.38,185.29,7.4756]
[1760784511862,4.51447494,185.37,185.3,5.49728829]
[1760784512066,4.51447494,185.36,185.3,5.49728829]
[1760784512271,7.4837,185.38,185.3,5.49728829]
[1760784512457,4.51417681,185.37,185.3,5.49728829]
[1760784512767,4.51417681,185.36,185.3,5.49728829]
[1760784512971,7.4837,185.38,185.3,5.49728829]
[1760784513269,4.51439592,185.37,185.3,5.49728829]
[1760784513459,4.51439592,185.36,185.3,5.49728829]
[1760784513664,7.4837,185.38,185.3,5.49728829]
[1760784513860,4.5139851,185.37,185.35,2.62]
[1760784514065,2.63,185.41,185.34,2.62]
[1760784514262,4.51479921,185.4,185.34,2.62]
[1760784514461,4.51479921,185.39,185.33,5.49728829]
[1760784514667,2.63,185.41,185.33,5.49728829]
[1760784514869,4.51482668,185.4,185.33,5.49728829]
[1760784515071,4.51482668,185.39,185.33,10.35188829]
[1760784515271,2.63,185.41,185.33,10.35188829]
[1760784515472,7.14481007,185.4,185.36,1.84251716]
[1760784515672,7.14481007,185.39,185.36,1.84251716]
[1760784515971,2.63,185.4,185.31,4.8552]
[1760784516270,2.63,185.38,185.32,1.84251716]
[1760784516470,7.14444201,185.37,185.32,1.84251716]
[1760784516675,2.63,185.37,185.33,2.62]
[1760784516878,4.8534,185.39,185.32,1.84251716]
[1760784517175,7.14471877,185.38,185.32,1.84251716]
[1760784517376,2.63,185.38,185.32,1.84251716]
[1760784518976,2.63,185.38,185.32,4.46251716]
[1760784521772,2.63,185.38,185.32,2.62]
[1760784522481,7.4836,185.38,185.32,2.62]
[1760784522681,2.63,185.36,185.29,4.46251716]
[1760784523483,4.47251716,185.36,185.29,4.46251716]
[1760784523872,4.522522,185.35,185.29,2.62]
[1760784524076,2.63,185.33,185.29,2.62]
[1760784524881,1.84251716,185.34,185.29,2.62]
[1760784525280,2.63,185.33,185.26,7.4765]
[1760784526380,1.84251716,185.32,185.26,7.4765]
[1760784527585,1.84251716,185.35,185.28,2.75]
[1760784527784,4.52640625,185.34,185.28,2.75]
[1760784527981,1.84251716,185.35,185.28,2.75]
[1760784528187,4.5286545,185.34,185.29,1.84251716]
[1760784528387,7.6941,185.36,185.3,2.75]
[1760784528586,4.52884354,185.35,185.3,2.75]
[1760784528788,7.83277406,185.4,185.32,2.75]
[1760784528981,4.53023071,185.39,185.33,1.84251716]
[1760784529181,4.53023071,185.38,185.34,2.75]
[1760784529486,4.53023071,185.37,185.34,2.75]
[1760784529689,2.84,185.4,185.34,2.75]
[1760784529889,7.37235279,185.39,185.34,2.75]
[1760784530083,4.53235279,185.38,185.33,1.84251716]
[1760784530384,4.53235279,185.37,185.33,1.84251716]
[1760784530588,2.84,185.39,185.34,2.75]
[1760784530790,4.53568627,185.38,185.33,1.84251716]
[1760784530991,4.53568627,185.37,185.33,1.84251716]
[1760784531191,2.84,185.39,185.34,2.75]
[1760784531490,4.53911859,185.38,185.34,2.75]
[1760784531690,4.53911859,185.37,185.34,2.75]
[1760784531892,2.84,185.39,185.33,1.84251716]
[1760784532093,4.52557959,185.38,185.34,2.75]
[1760784532288,4.52557959,185.37,185.33,1.84251716]
[1760784532595,4.99277406,185.41,185.34,2.75]
[1760784532788,4.52941419,185.4,185.34,2.75]
[1760784532990,4.52941419,185.39,185.33,1.84251716]
[1760784533190,4.52941419,185.38,185.33,1.84251716]
[1760784533390,4.52941419,185.37,185.33,1.84251716]
[1760784533583,11.68809122,185.41,185.33,4.59251716]
[1760784533788,4.51588692,185.4,185.33,4.59251716]
[1760784533994,4.51588692,185.39,185.33,4.59251716]
[1760784534194,4.51588692,185.38,185.33,1.84251716]
[1760784534493,4.51588692,185.37,185.34,2.75]
[1760784534690,4.51588692,185.37,185.24,9.7142]
[1760784534691,4.51625819,185.36,185.31,2.75]
[1760784534890,7.35625819,185.35,185.32,2.75]
[1760784535090,2.84,185.35,185.32,2.75]
[1760784536294,4.51894851,185.34,185.32,2.75]
[1760784536491,1.84251716,185.38,185.31,1.84251716]
[1760784536691,4.51931782,185.37,185.33,1.84251716]
[1760784536890,6.83529122,185.4,185.33,1.84251716]
[1760784536891,4.51931782,185.36,185.33,1.84251716]
[1760784537097,4.99277406,185.4,185.34,2.75]
[1760784537297,4.51686319,185.39,185.34,2.75]
[1760784537596,4.51686319,185.38,185.34,2.75]
[1760784537794,4.51686319,185.37,185.33,1.84251716]
[1760784537991,4.51686319,185.36,185.35,1.84251716]
[1760784538197,4.99277406,185.41,185.35,4.59251716]
[1760784538394,4.51792882,185.4,185.36,2.75]
[1760784538594,4.51792882,185.39,185.36,2.75]
[1760784538795,4.51792882,185.38,185.35,1.84251716]
[1760784538996,4.51792882,185.37,185.36,2.75]
[1760784540393,7.83277406,185.42,185.36,2.75]
[1760784540602,7.83277406,185.42,185.35,49.7541]
[1760784540603,4.68251716,185.4,185.34,44.9]
[1760784540800,7.35923095,185.39,185.33,44.9]
[1760784540993,7.35923095,185.38,185.34,2.75]
[1760784541195,4.51923095,185.37,185.34,2.75]
[1760784541394,2.84,185.38,185.34,2.75]
[1760784541596,4.5025942,185.37,185.34,2.75]
[1760784541804,2.84,185.38,185.34,2.75]
[1760784542100,2.84,185.38,185.33,44.9]
[1760784542101,9.3912689,185.37,185.31,2.75]
[1760784542301,6.83529122,185.38,185.31,2.75]
[1760784542302,2.84,185.35,185.31,2.75]
[1760784542495,6.83529122,185.38,185.31,1.84251716]
[1760784542496,4.50259088,185.34,185.31,1.84251716]
[1760784542803,2.84,185.38,185.32,2.75]
[1760784542994,4.50190564,185.37,185.32,2.75]
[1760784543194,4.50190564,185.36,185.33,2.75]
[1760784543395,4.50190564,185.35,185.33,2.75]
[1760784543591,4.99277406,185.39,185.32,44.9]
[1760784543796,4.50251113,185.38,185.35,2.75]
[1760784543996,4.50251113,185.37,185.35,2.75]
[1760784544205,4.50251113,185.36,185.35,2.75]
[1760784545300,7.34251113,185.36,185.32,1.84251716]
[1760784545506,4.48824772,185.35,185.32,1.84251716]
[1760784545698,4.99277406,185.39,185.32,1.84251716]
[1760784545699,4.99277406,185.39,185.33,44.9]
[1760784546005,12.21779778,185.38,185.32,4.59251716]
[1760784546202,4.48842562,185.37,185.31,4.8553]
[1760784546398,4.99277406,185.39,185.31,4.8553]
[1760784546399,2.84,185.35,185.31,4.8553]
[1760784546599,4.48842562,185.34,185.32,44.9]
[1760784546806,2.84,185.35,185.32,44.9]
[1760784547007,2.77,185.33,185.25,1.84251716]
[1760784547207,4.48850046,185.32,185.25,46.74251716]
[1760784547409,4.48850046,185.31,185.25,46.74251716]
[1760784547606,4.48850046,185.3,185.25,46.74251716]
[1760784547904,2.77,185.33,185.27,1.84251716]
[1760784548104,7.25837452,185.32,185.28,2.87]
[1760784548310,4.48837452,185.31,185.28,2.87]
[1760784548505,4.48837452,185.3,185.28,2.87]
[1760784548699,2.77,185.32,185.28,2.87]
[1760784548903,4.4887443,185.31,185.28,2.87]
[1760784549110,4.4887443,185.3,185.28,2.87]
[1760784549314,2.77,185.33,185.28,2.87]
[1760784549510,7.25967199,185.32,185.28,47.77]
[1760784549707,2.77,185.3,185.27,1.84251716]
[1760784550013,2.77,185.3,185.27,44.9]
[1760784550809,4.61251716,185.33,185.27,44.9]
[1760784551009,9.38170685,185.32,185.26,2.87]
[1760784551213,2.77,185.3,185.27,44.9]
[1760784551408,4.49021422,185.29,185.27,44.9]
[1760784551607,2.77,185.3,185.26,2.87]
[1760784551813,4.45842945,185.29,185.27,44.9]
[1760784552012,2.77,185.3,185.27,44.9]
[1760784552208,4.45864145,185.29,185.27,44.9]
[1760784552512,2.77,185.3,185.27,47.77]
[1760784552712,4.4579142,185.29,185.27,2.87]
[1760784552914,9.60529122,185.33,185.27,47.77]
[1760784553107,2.77,185.31,185.27,2.87]
[1760784553313,4.45834516,185.3,185.28,44.9]
[1760784553504,9.84747406,185.34,185.28,2.87]
[1760784553505,4.99277406,185.34,185.28,2.87]
[1760784553712,2.77,185.32,185.28,47.77]
[1760784553907,4.45804087,185.31,185.26,6.69901716]
[1760784554108,4.45804087,185.3,185.27,2.87]
[1760784554308,2.77,185.32,185.27,2.87]
[1760784554517,1.84251716,185.33,185.27,2.87]
[1760784554518,7.22564797,185.31,185.27,2.87]
[1760784554716,4.45564797,185.3,185.27,47.77]
[1760784554915,2.77,185.31,185.27,2.87]
[1760784555214,4.45640873,185.3,185.28,2.87]
[1760784555416,2.77,185.31,185.28,2.87]
[1760784555615,4.45585508,185.3,185.28,2.87]
[1760784555810,2.77,185.31,185.28,2.87]
[1760784556010,4.45564478,185.3,185.28,2.87]
[1760784556210,2.77,185.31,185.28,2.87]
[1760784556411,4.45522665,185.3,185.28,2.6]
[1760784556612,4.50251716,185.33,185.28,47.5]
[1760784556917,4.45605603,185.32,185.28,44.9]
[1760784557118,4.45605603,185.32,185.27,4.8562]
[1760784557119,4.45605603,185.31,185.27,4.8562]
[1760784557316,2.66,185.33,185.27,4.8562]
[1760784557618,4.45553685,185.32,185.29,2.6]
[1760784557818,4.45553685,185.31,185.29,47.5]
[1760784558014,2.66,185.33,185.29,2.6]
[1760784558214,4.44562409,185.32,185.29,47.5]
[1760784558414,4.44562409,185.31,185.29,2.6]
[1760784558716,4.99277406,185.35,185.29,47.5]
[1760784558913,4.44552326,185.34,185.32,1.84251716]
[1760784559120,2.66,185.38,185.34,2.6]
[1760784559318,11.99516852,185.37,185.34,2.6]
[1760784559517,4.44652188,185.36,185.34,44.9]
[1760784559710,4.44652188,185.35,185.25,2.6]
[1760784559915,4.44652188,185.35,185.24,9.7143]
[1760784559916,4.44652188,185.34,185.32,2.6]
[1760784560222,2.66,185.36,185.33,44.9]
[1760784560420,2.66,185.34,185.31,44.9]
[1760784560715,8.92127671,185.33,185.29,44.9]
[1760784560920,4.41875955,185.32,185.3,2.6]
[1760784561117,7.65277406,185.36,185.3,2.6]
[1760784561317,9.30647534,185.35,185.3,2.6]
[1760784561518,11.96647534,185.34,185.3,2.6]
[1760784561720,7.07788185,185.33,185.3,44.9]
[1760784562025,4.41788185,185.32,185.3,44.9]
[1760784562328,2.66,185.33,185.29,47.5]
[1760784562519,4.41878941,185.32,185.29,47.5]
[1760784562713,4.41892186,185.31,185.27,2.6]
[1760784562918,2.66,185.32,185.28,44.9]
[1760784563121,7.07860552,185.31,185.28,44.9]
[1760784563324,2.66,185.31,185.27,2.6]
[1760784563524,2.66,185.31,185.28,44.9]
[1760784563724,2.66,185.31,185.27,2.6]
[1760784563927,2.66,185.31,185.28,44.9]
[1760784564336,2.66,185.31,185.27,2.6]
[1760784564726,2.66,185.31,185.28,44.9]
[1760784566021,2.66,185.31,185.28,47.5]
[1760784566228,1.84251716,185.32,185.28,47.5]
[1760784566429,4.41832853,185.31,185.28,47.5]
[1760784566727,4.50251716,185.32,185.28,2.6]
[1760784566925,4.41822352,185.31,185.29,44.9]
[1760784567123,1.84251716,185.34,185.25,2.6]
[1760784567429,4.41848019,185.33,185.27,2.6]
[1760784567630,1.84251716,185.34,185.28,44.9]
[1760784567832,7.07848278,185.33,185.29,2.6]
[1760784568022,2.66,185.33,185.26,1.84251716]
[1760784568229,2.66,185.33,185.27,47.5]
[1760784568527,2.66,185.33,185.28,44.9]
[1760784568733,2.66,185.33,185.29,2.6]
[1760784569125,2.66,185.33,185.29,47.5]
[1760784569425,2.66,185.33,185.29,2.6]
[1760784569926,2.66,185.33,185.29,47.5]
[1760784570333,2.66,185.33,185.29,2.6]
[1760784570529,2.66,185.33,185.29,47.5]
[1760784570730,2.66,185.33,185.29,2.6]
[1760784571127,2.66,185.33,185.3,2.6]
[1760784571631,7.65277406,185.38,185.32,2.6]
[1760784571829,7.65277406,185.38,185.23,62.0]
[1760784571830,1.84251716,185.33,185.26,2.6]
[1760784572132,1.84251716,185.33,185.27,42.84]
[1760784572334,1.84251716,185.33,185.28,44.9]
[1760784572533,1.84251716,185.35,185.29,47.5]
[1760784572728,9.5872875,185.34,185.3,2.6]
[1760784572927,9.5872359,185.33,185.3,2.6]
[1760784573235,2.66,185.34,185.3,2.6]
[1760784573531,9.58749149,185.33,185.3,2.6]
[1760784573727,2.66,185.34,185.3,2.6]
[1760784573923,9.58791865,185.33,185.3,2.6]
[1760784574123,2.66,185.34,185.3,2.6]
[1760784574330,1.84251716,185.35,185.31,2.6]
[1760784574331,9.58843952,185.33,185.31,2.6]
[1760784574525,9.35641716,185.37,185.31,2.6]
[1760784574724,2.66,185.35,185.32,2.6]
[1760784574935,9.58923456,185.34,185.31,44.9]
[1760784575127,2.66,185.35,185.31,47.5]
[1760784575332,9.5892936,185.34,185.31,47.5]
[1760784575531,2.66,185.35,185.31,47.5]
[1760784575739,9.58935828,185.34,185.31,47.5]
[1760784576034,2.66,185.35,185.31,2.6]
[1760784576334,9.58953718,185.34,185.31,47.5]
[1760784576525,2.66,185.35,185.31,47.5]
[1760784576725,9.58974951,185.34,185.31,47.5]
[1760784576927,2.66,185.35,185.31,47.5]
[1760784577132,9.58974951,185.34,185.31,47.5]
[1760784577328,2.66,185.35,185.29,7.4557]
[1760784577533,9.59015775,185.34,185.31,2.6]
[1760784577728,2.66,185.35,185.31,2.6]
[1760784577729,9.5899006,185.33,185.31,2.6]
[1760784577929,2.66,185.35,185.31,2.6]
[1760784578130,9.58978887,185.34,185.31,2.6]
[1760784578429,2.8806093,185.39,185.27,7.4563]
[1760784578430,12.24978887,185.33,185.27,7.4563]
[1760784578631,12.24978887,185.32,185.28,2.6]
[1760784578831,4.41881672,185.31,185.29,2.6]
[1760784579032,2.66,185.32,185.29,44.9]
[1760784579238,4.41904208,185.31,185.29,44.9]
[1760784579437,7.65277406,185.36,185.29,44.9]
[1760784579638,9.59132453,185.35,185.29,44.9]
[1760784579828,9.59132453,185.34,185.29,44.9]
[1760784580034,9.59132453,185.33,185.29,47.5]
[1760784580236,9.59132453,185.32,185.29,47.5]
[1760784580538,4.99277406,185.37,185.3,2.6]
[1760784580836,12.25187111,185.36,185.32,2.6]
[1760784581033,9.84667406,185.37,185.32,2.6]